[Event "GER-ch Youth-U14w 2022"]
[Site "Willingen"]
[Date "2022.06.05"]
[Round "1.9"]
[White "Reich, Elisabeth"]
[Black "Heuberger, Sandra"]
[Result "1-0"]
[ECO "C50"]
[WhiteElo "1457"]
[BlackElo "1101"]
[Annotator "NA RC COMBH"]
[PlyCount "139"]
[EventDate "2022.06.05"]
[EventType "swiss"]
[EventRounds "9"]
[EventCountry "GER"]
[SourceTitle "playchess.com"]
[Source "ChessBase"]
[SourceQuality "1"]
[TimeControl "40/4500+30:900+30"]

1. e4 {[%emt 0:00:00]} e5 {[%emt 0:00:00]} 2. Nf3 {[%emt 0:00:00]} Nc6 {[%emt 0:00:00]} 3. Bc4 {[%emt 0:00:00]} Nf6 {[%emt 0:00:00]} 4. d3 {[%emt 0:00:00]} Bc5 {[%emt 0:00:00]} 5. O-O {[%emt 0:00:00]} O-O {[%emt 0:00:00]} 6. c3 {[%emt 0:00:00]} Bb6 {[%emt 0:00:00]} 7. Bb3 {[%emt 0:00:00]} d6 {[%emt 0:00:00]} 8. h3 {[%emt 0:00:00]} Be6 {[%emt 0:00:00]} 9. Bxe6 {[%emt 0:00:00]} fxe6 {[%emt 0:00:00]} 10. a4 {[%emt 0:00:00]} d5 {[%emt 0:00:00]} 11. Qe2 {[%emt 0:00:00]} Qe7 {[%emt 0:04:58]} 12. b4 {[%emt 0:08:50]} a5 {[%emt 0:11:15]} 13. b5 {[%emt 0:02:07]} dxe4 {[%emt 0:00:54]} 14. dxe4 {[%emt 0:00:34]} Nd8 {[%emt 0:00:56]} 15. Nxe5 {[%emt 0:01:18]} Nf7 {[%emt 0:00:45]} 16. Nxf7 {[%emt 0:01:15]} Rxf7 {[%emt 0:00:59]} 17. Be3 {[%emt 0:03:05]} c5 {[%emt 0:03:39]} 18. Bg5 {[%emt 0:06:11]} Qc7 {[%emt 0:03:49]} 19. Nd2 {[%emt 0:06:34]} Ba7 {[%emt 0:06:27]} 20. Bh4 {[%emt 0:02:43]} Rd8 {[%emt 0:07:39]} 21. e5 {[%emt 0:02:08]} Bb8 {[%emt 0:09:10]} 22. Nf3 {[%emt 0:02:25]} Nd5 {[%emt 0:02:11]} 23. Bxd8 {[%emt 0:00:51]} Qxd8 {[%emt 0:00:09]} 24. Rad1 {[%emt 0:02:27]} Qe7 {[%emt 0:01:24]} 25. Qd3 {[%emt 0:01:33]} Bc7 {[%emt 0:01:11]} 26. c4 {[%emt 0:06:33]} Nb6 {[%emt 0:04:08]} 27. Ra1 {[%emt 0:02:48]} Rf8 {[%emt 0:01:00]} 28. Qe4 {[%emt 0:05:02]} Re8 {[%emt 0:05:03]} 29. Rfd1 {[%emt 0:03:14]} Kh8 {[%emt 0:04:15]} 30. Rd2 {[%emt 0:01:37]} Bb8 {[%emt 0:05:26]} 31. Rad1 {[%emt 0:01:40]} Kg8 {[%emt 0:01:58]} 32. Qc2 {[%emt 0:05:42]} Kh8 {[%emt 0:05:35]} 33. Re1 {[%emt 0:02:50]} Rd8 {[%emt 0:03:57]} 34. Rxd8+ {[%emt 0:00:23]} Qxd8 {[%emt 0:00:23]} 35. Rd1 {[%emt 0:00:22]} Qe7 {[%emt 0:00:27]} 36. Qd2 {[%emt 0:01:08]} Bc7 {[%emt 0:00:22]} 37. Qxa5 {[%emt 0:00:48]} Kg8 {[%emt 0:02:49]} 38. Qd2 {[%emt 0:01:23]} h6 {[%emt 0:02:45]} 39. Qc2 {[%emt 0:00:22]} Kh8 {[%emt 0:00:21]} 40. Qd3 {[%emt 0:00:32]} Nxa4 {[%emt 0:00:53]} 41. Qd7 {[%emt 0:15:20]} Qxd7 {[%emt 0:00:00]} 42. Rxd7 {[%emt 0:00:00]} Ba5 {[%emt 0:00:00]} 43. Rxb7 {[%emt 0:00:00]} Nb6 {[%emt 0:00:00]} 44. Re7 {[%emt 0:00:00]} Nxc4 {[%emt 0:00:00]} 45. Rxe6 {[%emt 0:00:00]} Kg8 {[%emt 0:00:00]} 46. Rc6 {[%emt 0:00:00]} Bb6 {[%emt 0:00:00]} 47. Nd2 {[%emt 0:00:00]} Nxd2 {[%emt 0:00:00]} 48. Rxb6 {[%emt 0:00:00]} Nc4 {[%emt 0:00:00]} 49. Rc6 {[%emt 0:00:00]} Nxe5 {[%emt 0:00:00]} 50. Rxc5 {[%emt 0:00:00]} Nd7 {[%emt 0:00:00]} 51. Rc6 {[%emt 0:00:00]} Kf7 {[%emt 0:00:00]} 52. b6 {[%emt 0:00:00]} Ke7 {[%emt 0:00:00]} 53. b7 {[%emt 0:00:00]} h5 {[%emt 0:00:00]} 54. Rc8 {[%emt 0:00:00]} g6 {[%emt 0:00:44]} 55. b8=Q {[%emt 0:00:00]} Nxb8 {[%emt 0:00:17]} 56. Rxb8 {[%emt 0:00:00]} Ke6 {[%emt 0:00:18]} 57. g4 {[%emt 0:00:00]} Kf6 {[%emt 0:00:24]} 58. gxh5 {[%emt 0:00:00]} gxh5 {[%emt 0:00:12]} 59. h4 {[%emt 0:00:00]} Kf5 {[%emt 0:00:07]} 60. Rb4 {[%emt 0:00:00]} Kg6 {[%emt 0:00:32]} 61. Kg2 {[%emt 0:00:00]} Kf6 {[%emt 0:00:18]} 62. Kg3 {[%emt 0:00:00]} Kf5 {[%emt 0:00:10]} 63. Rb5+ {[%emt 0:00:00]} Kg6 {[%emt 0:00:06]} 64. Rg5+ {[%emt 0:00:00]} Kh6 {[%emt 0:00:20]} 65. f4 {[%emt 0:00:00]} Kh7 {[%emt 0:00:12]} 66. f5 {[%emt 0:00:00]} Kh8 {[%emt 0:00:16]} 67. f6 {[%emt 0:00:00]} Kh7 {[%emt 0:00:05]} 68. f7 {[%emt 0:00:00]} Kh6 {[%emt 0:00:07]} 69. f8=Q+ {[%emt 0:00:00]} Kh7 {[%emt 0:00:04]} 70. Qg7# 1-0

[Event "GER-ch Youth-U14w 2022"]
[Site "Willingen"]
[Date "2022.06.05"]
[Round "1.10"]
[White "Bursan, Ana-Maria"]
[Black "Haug, Mara"]
[Result "1-0"]
[ECO "B30"]
[WhiteElo "1329"]
[BlackElo "1394"]
[Annotator "NA RC COMBH"]
[PlyCount "91"]
[EventDate "2022.06.05"]
[EventType "swiss"]
[EventRounds "9"]
[EventCountry "GER"]
[SourceTitle "playchess.com"]
[Source "ChessBase"]
[SourceQuality "1"]
[TimeControl "40/4500+30:900+30"]

1. e4 {[%emt 0:00:00]} c5 {[%emt 0:00:00]} 2. Nf3 {[%emt 0:00:00]} Nc6 {[%emt 0:00:00]} 3. Bc4 {[%emt 0:00:00]} g6 {[%emt 0:00:00]} 4. c3 {[%emt 0:00:00]} Bg7 {[%emt 0:01:28]} 5. d4 {[%emt 0:08:11]} cxd4 {[%emt 0:04:49]} 6. cxd4 {[%emt 0:03:32]} Qb6 {[%emt 0:04:41]} 7. e5 {[%emt 0:09:29]} Qb4+ {[%emt 0:13:42]} 8. Nbd2 {[%emt 0:03:59]} f6 {[%emt 0:12:17]} 9. Qe2 {[%emt 0:07:06]} fxe5 {[%emt 0:04:13]} 10. dxe5 {[%emt 0:02:47]} e6 {[%emt 0:02:06]} 11. O-O {[%emt 0:04:33]} Nge7 {[%emt 0:03:33]} 12. b3 {[%emt 0:05:06]} O-O {[%emt 0:09:35]} 13. Bb2 {[%emt 0:03:44]} Nf5 {[%emt 0:03:51]} 14. a3 {[%emt 0:05:18]} Qb6 {[%emt 0:02:09]} 15. Rfd1 {[%emt 0:05:26]} d5 {[%emt 0:04:08]} 16. Bd3 {[%emt 0:05:39]} Nfd4 {[%emt 0:01:32]} 17. Nxd4 {[%emt 0:01:49]} Nxd4 {[%emt 0:00:26]} 18. Qe3 {[%emt 0:01:44]} Nc6 {[%emt 0:01:15]} 19. Qg3 {[%emt 0:02:06]} Bd7 {[%emt 0:01:36]} 20. b4 {[%emt 0:01:57]} a6 {[%emt 0:01:26]} 21. Nf3 {[%emt 0:01:27]} Rac8 {[%emt 0:01:10]} 22. Qh3 {[%emt 0:01:11]} Ne7 {[%emt 0:02:17]} 23. Bd4 {[%emt 0:00:50]} Qd8 {[%emt 0:05:04]} 24. Ng5 {[%emt 0:00:29]} h6 {[%emt 0:02:28]} 25. Nxe6 {[%emt 0:00:17]} Qe8 {[%emt 0:01:33]} 26. Nxg7 {[%emt 0:01:54]} Bxh3 {[%emt 0:02:11]} 27. Nxe8 {[%emt 0:00:16]} Rcxe8 {[%emt 0:00:32]} 28. gxh3 {[%emt 0:00:17]} Kh7 {[%emt 0:00:17]} 29. Rac1 {[%emt 0:00:47]} Nc6 {[%emt 0:00:30]} 30. Bb2 {[%emt 0:02:25]} Rf7 {[%emt 0:00:35]} 31. Re1 {[%emt 0:02:46]} Rfe7 {[%emt 0:00:34]} 32. f4 {[%emt 0:00:42]} Rf7 {[%emt 0:00:26]} 33. Rf1 {[%emt 0:01:09]} Ref8 {[%emt 0:01:02]} 34. Kg2 {[%emt 0:02:15]} Rxf4 {[%emt 0:00:33]} 35. Rxf4 {[%emt 0:00:40]} Rxf4 {[%emt 0:00:01]} 36. Kg3 {[%emt 0:00:19]} Rf7 {[%emt 0:00:29]} 37. Rc5 {[%emt 0:00:42]} Rd7 {[%emt 0:00:38]} 38. Bxa6 {[%emt 0:01:02]} Nxe5 {[%emt 0:00:44]} 39. Bxe5 {[%emt 0:00:21]} bxa6 {[%emt 0:00:02]} 40. Kf3 {[%emt 0:00:20]} Kg8 {[%emt 0:00:16]} 41. Ke3 {[%emt 0:15:16]} Kf7 {[%emt 0:15:39]} 42. Kd4 {[%emt 0:00:07]} Ke6 {[%emt 0:00:14]} 43. Rc6+ {[%emt 0:00:11]} Kf5 {[%emt 0:00:22]} 44. Rxa6 {[%emt 0:01:03]} Re7 {[%emt 0:00:39]} 45. Rf6+ {[%emt 0:00:25]} Kg5 {[%emt 0:00:00]} 46. Kxd5 {[%emt 0:00:00]} 1-0

[Event "GER-ch Youth-U14w 2022"]
[Site "Willingen"]
[Date "2022.06.05"]
[Round "1.11"]
[White "Fock, Madiha"]
[Black "Brandt, Greta"]
[Result "1-0"]
[ECO "C04"]
[WhiteElo "1468"]
[BlackElo "1458"]
[Annotator "NA RC COMBH"]
[PlyCount "65"]
[EventDate "2022.06.05"]
[EventType "swiss"]
[EventRounds "9"]
[EventCountry "GER"]
[SourceTitle "playchess.com"]
[Source "ChessBase"]
[SourceQuality "1"]
[TimeControl "40/4500+30:900+30"]

1. e4 {[%emt 0:00:00]} e6 {[%emt 0:00:00]} 2. d4 {[%emt 0:00:00]} d5 {[%emt 0:00:00]} 3. Nd2 {[%emt 0:00:00]} Nc6 {[%emt 0:00:00]} 4. Ngf3 {[%emt 0:00:00]} Nf6 {[%emt 0:00:00]} 5. e5 {[%emt 0:00:00]} Nd7 {[%emt 0:00:00]} 6. Be2 {[%emt 0:00:00]} f6 {[%emt 0:00:00]} 7. exf6 {[%emt 0:00:00]} Nxf6 {[%emt 0:00:00]} 8. O-O {[%emt 0:00:00]} Bd6 {[%emt 0:00:00]} 9. c4 {[%emt 0:00:00]} b6 {[%emt 0:00:00]} 10. cxd5 {[%emt 0:00:40]} exd5 {[%emt 0:00:00]} 11. Bb5 {[%emt 0:02:33]} Bd7 {[%emt 0:02:43]} 12. Bxc6 {[%emt 0:07:22]} Bxc6 {[%emt 0:00:16]} 13. Re1+ {[%emt 0:00:16]} Be7 {[%emt 0:06:44]} 14. Ne5 {[%emt 0:01:28]} Qd6 {[%emt 0:11:08]} 15. Nf1 {[%emt 0:15:41]} Nd7 {[%emt 0:04:42]} 16. Nxc6 {[%emt 0:04:44]} Qxc6 {[%emt 0:01:31]} 17. Bg5 {[%emt 0:02:41]} Nf6 {[%emt 0:02:23]} 18. Rc1 {[%emt 0:02:12]} Qd6 {[%emt 0:02:55]} 19. Ng3 {[%emt 0:09:03]} Qd7 {[%emt 0:06:39]} 20. Bxf6 {[%emt 0:09:01]} gxf6 {[%emt 0:00:11]} 21. Qc2 {[%emt 0:04:47]} O-O-O {[%emt 0:02:12]} 22. Qe2 {[%emt 0:03:28]} Rde8 {[%emt 0:03:23]} 23. Qa6+ {[%emt 0:01:28]} Kb8 {[%emt 0:00:09]} 24. Re3 {[%emt 0:01:54]} Bb4 {[%emt 0:04:49]} 25. Rb3 {[%emt 0:01:49]} Re1+ {[%emt 0:01:35]} 26. Rxe1 {[%emt 0:00:07]} Bxe1 {[%emt 0:00:07]} 27. Ra3 {[%emt 0:03:23]} c6 {[%emt 0:00:14]} 28. Qe2 {[%emt 0:02:56]} Bb4 {[%emt 0:00:31]} 29. Re3 {[%emt 0:00:29]} Bd6 {[%emt 0:05:19]} 30. Re6 {[%emt 0:02:01]} Bxg3 {[%emt 0:01:58]} 31. hxg3 {[%emt 0:00:08]} f5 {[%emt 0:01:39]} 32. Qe5+ {[%emt 0:00:10]} Ka8 {[%emt 0:01:32]} 33. Qxh8+ {[%emt 0:00:16]} 1-0

[Event "GER-ch Youth-U14w 2022"]
[Site "Willingen"]
[Date "2022.06.05"]
[Round "1.12"]
[White "Margaryan, Sofia"]
[Black "Flierl, Veronika"]
[Result "0-1"]
[ECO "D35"]
[WhiteElo "1181"]
[BlackElo "1427"]
[Annotator "NA RC COMBH"]
[PlyCount "130"]
[EventDate "2022.06.05"]
[EventType "swiss"]
[EventRounds "9"]
[EventCountry "GER"]
[SourceTitle "playchess.com"]
[Source "ChessBase"]
[SourceQuality "1"]
[TimeControl "40/4500+30:900+30"]

1. d4 {[%emt 0:00:00]} d5 {[%emt 0:00:00]} 2. c4 {[%emt 0:00:00]} e6 {[%emt 0:00:00]} 3. Nc3 {[%emt 0:00:00]} Nf6 {[%emt 0:00:00]} 4. cxd5 {[%emt 0:00:00]} exd5 {[%emt 0:00:00]} 5. Bf4 {[%emt 0:00:00]} Bd6 {[%emt 0:00:00]} 6. Bxd6 {[%emt 0:00:00]} Qxd6 {[%emt 0:00:00]} 7. Nf3 {[%emt 0:00:00]} Bf5 {[%emt 0:00:00]} 8. e3 {[%emt 0:00:00]} O-O {[%emt 0:03:44]} 9. Be2 {[%emt 0:00:00]} Nc6 {[%emt 0:00:56]} 10. a3 {[%emt 0:00:00]} a6 {[%emt 0:01:21]} 11. O-O {[%emt 0:00:00]} Rfe8 {[%emt 0:01:58]} 12. Qd2 {[%emt 0:00:00]} Na5 {[%emt 0:02:51]} 13. Qd1 {[%emt 0:00:32]} Qb6 {[%emt 0:07:15]} 14. b4 {[%emt 0:00:41]} Nc6 {[%emt 0:03:09]} 15. Na4 {[%emt 0:03:16]} Qa7 {[%emt 0:00:12]} 16. Rc1 {[%emt 0:01:00]} Qb8 {[%emt 0:08:29]} 17. Nc5 {[%emt 0:08:47]} a5 {[%emt 0:06:40]} 18. b5 {[%emt 0:01:23]} Ne7 {[%emt 0:00:58]} 19. Ne5 {[%emt 0:05:36]} Ng6 {[%emt 0:02:28]} 20. Ng4 {[%emt 0:08:12]} Ne4 {[%emt 0:05:10]} 21. Nxe4 {[%emt 0:08:56]} Bxe4 {[%emt 0:00:54]} 22. Bd3 {[%emt 0:01:19]} Qc8 {[%emt 0:02:52]} 23. f3 {[%emt 0:02:59]} Bxd3 {[%emt 0:02:13]} 24. Qxd3 {[%emt 0:00:18]} Qd7 {[%emt 0:01:06]} 25. a4 {[%emt 0:01:29]} Rac8 {[%emt 0:02:42]} 26. Rc5 {[%emt 0:02:10]} Qe6 {[%emt 0:04:39]} 27. Kf2 {[%emt 0:04:33]} Ne7 {[%emt 0:02:35]} 28. h3 {[%emt 0:06:01]} b6 {[%emt 0:02:12]} 29. Rc2 {[%emt 0:00:23]} c6 {[%emt 0:03:19]} 30. bxc6 {[%emt 0:01:59]} Rxc6 {[%emt 0:00:18]} 31. Rxc6 {[%emt 0:00:11]} Qxc6 {[%emt 0:00:13]} 32. Ra1 {[%emt 0:00:37]} Ng6 {[%emt 0:02:02]} 33. Qb5 {[%emt 0:02:28]} Qe6 {[%emt 0:01:17]} 34. Re1 {[%emt 0:00:55]} Rc8 {[%emt 0:03:57]} 35. Re2 {[%emt 0:03:12]} Rb8 {[%emt 0:02:09]} 36. g3 {[%emt 0:00:20]} h5 {[%emt 0:00:32]} 37. Nh2 {[%emt 0:00:10]} Qxh3 {[%emt 0:00:51]} 38. Nf1 {[%emt 0:01:35]} Qe6 {[%emt 0:00:18]} 39. Qb3 {[%emt 0:03:04]} Qd6 {[%emt 0:01:41]} 40. Ra2 {[%emt 0:01:57]} Ne7 {[%emt 0:00:34]} 41. Qd3 {[%emt 0:17:23]} Nc6 {[%emt 0:15:42]} 42. Qf5 {[%emt 0:01:43]} g6 {[%emt 0:00:34]} 43. Qg5 {[%emt 0:00:33]} Nb4 {[%emt 0:01:01]} 44. Rd2 {[%emt 0:00:26]} Qd7 {[%emt 0:00:32]} 45. Qf4 {[%emt 0:02:22]} Rc8 {[%emt 0:01:23]} 46. Qf6 {[%emt 0:01:19]} Rc6 {[%emt 0:01:01]} 47. Qe5 {[%emt 0:00:52]} Re6 {[%emt 0:00:44]} 48. Qf4 {[%emt 0:01:03]} Qxa4 {[%emt 0:00:47]} 49. Qb8+ {[%emt 0:00:18]} Kg7 {[%emt 0:00:11]} 50. Qf4 {[%emt 0:01:05]} Qb5 {[%emt 0:01:08]} 51. Kg1 {[%emt 0:02:17]} Nd3 {[%emt 0:01:31]} 52. Qg5 {[%emt 0:00:19]} Rf6 {[%emt 0:01:23]} 53. f4 {[%emt 0:00:37]} a4 {[%emt 0:01:39]} 54. Ra2 {[%emt 0:01:12]} Qb3 {[%emt 0:00:25]} 55. Ra1 {[%emt 0:00:14]} a3 {[%emt 0:00:59]} 56. Rxa3 {[%emt 0:02:11]} Qxa3 {[%emt 0:00:17]} 57. Qxd5 {[%emt 0:00:06]} Qb2 {[%emt 0:01:22]} 58. Qf3 {[%emt 0:00:38]} Rd6 {[%emt 0:01:03]} 59. Qd1 {[%emt 0:01:14]} Qf2+ {[%emt 0:00:34]} 60. Kh1 {[%emt 0:00:09]} Ne1 {[%emt 0:00:14]} 61. Qxe1 {[%emt 0:00:45]} Qxe1 {[%emt 0:00:06]} 62. Kg2 {[%emt 0:00:10]} Qe2+ {[%emt 0:00:40]} 63. Kg1 {[%emt 0:00:15]} Rc6 {[%emt 0:00:34]} 64. d5 {[%emt 0:00:13]} Rc2 {[%emt 0:00:07]} 65. Kh1 {[%emt 0:00:09]} Qg2# {[%emt 0:00:09]} 0-1

[Event "GER-ch Youth-U14w 2022"]
[Site "Willingen"]
[Date "2022.06.05"]
[Round "1.13"]
[White "Englert, Lin"]
[Black "Marrufo, Emilia"]
[Result "1-0"]
[ECO "D32"]
[WhiteElo "1503"]
[BlackElo "998"]
[Annotator "NA RC COMBH"]
[PlyCount "109"]
[EventDate "2022.06.05"]
[EventType "swiss"]
[EventRounds "9"]
[EventCountry "GER"]
[SourceTitle "playchess.com"]
[Source "ChessBase"]
[SourceQuality "1"]
[TimeControl "40/4500+30:900+30"]

1. d4 {[%emt 0:00:00]} d5 {[%emt 0:00:00]} 2. c4 {[%emt 0:00:00]} e6 {[%emt 0:00:00]} 3. Nc3 {[%emt 0:00:00]} c5 {[%emt 0:00:00]} 4. cxd5 {[%emt 0:00:00]} cxd4 {[%emt 0:00:00]} 5. Qxd4 {[%emt 0:00:00]} Nc6 {[%emt 0:00:00]} 6. Qd1 {[%emt 0:00:00]} exd5 7. Qxd5 {[%emt 0:00:00]} Be6 {[%emt 0:00:24]} 8. Qxd8+ {[%emt 0:00:00]} Rxd8 {[%emt 0:01:20]} 9. Bd2 {[%emt 0:00:00]} Nf6 {[%emt 0:02:35]} 10. Nf3 {[%emt 0:00:38]} Bb4 {[%emt 0:02:26]} 11. e3 {[%emt 0:03:30]} O-O {[%emt 0:03:27]} 12. Be2 {[%emt 0:02:04]} Rfe8 {[%emt 0:01:47]} 13. O-O {[%emt 0:00:43]} Bg4 {[%emt 0:03:26]} 14. Rfd1 {[%emt 0:01:55]} Ne4 {[%emt 0:02:31]} 15. Nxe4 {[%emt 0:02:48]} Rxe4 {[%emt 0:04:03]} 16. Bxb4 {[%emt 0:00:21]} Rxb4 {[%emt 0:01:50]} 17. Rxd8+ {[%emt 0:00:09]} Nxd8 {[%emt 0:00:27]} 18. Rd1 {[%emt 0:01:14]} Nc6 {[%emt 0:01:41]} 19. b3 {[%emt 0:00:18]} a5 {[%emt 0:02:14]} 20. h3 {[%emt 0:00:52]} Be6 {[%emt 0:01:27]} 21. Nd4 {[%emt 0:01:31]} h6 {[%emt 0:02:02]} 22. Nxe6 {[%emt 0:01:16]} fxe6 {[%emt 0:00:42]} 23. Bc4 {[%emt 0:00:05]} Kf7 {[%emt 0:01:45]} 24. Rd7+ {[%emt 0:01:37]} Kf6 {[%emt 0:01:04]} 25. Rd6 {[%emt 0:01:14]} Ne5 {[%emt 0:01:48]} 26. Rxe6+ {[%emt 0:00:12]} Kf5 {[%emt 0:00:34]} 27. g4+ {[%emt 0:00:08]} Ke4 {[%emt 0:02:08]} 28. f3+ {[%emt 0:00:16]} Kxf3 {[%emt 0:00:13]} 29. Rxe5 {[%emt 0:00:08]} Rb6 {[%emt 0:02:53]} 30. Re6 {[%emt 0:00:38]} Rxe6 {[%emt 0:00:29]} 31. Bxe6 {[%emt 0:00:10]} Kxe3 {[%emt 0:00:34]} 32. a4 {[%emt 0:00:21]} b6 {[%emt 0:00:26]} 33. Kg2 {[%emt 0:00:09]} g5 {[%emt 0:00:27]} 34. Kg3 {[%emt 0:00:19]} Ke4 {[%emt 0:00:44]} 35. Bf5+ {[%emt 0:00:43]} Ke5 {[%emt 0:00:51]} 36. Kf3 {[%emt 0:00:17]} Kf6 {[%emt 0:00:54]} 37. Ke4 {[%emt 0:00:07]} Ke7 {[%emt 0:00:44]} 38. Ke5 {[%emt 0:00:07]} Ke8 {[%emt 0:02:03]} 39. Kf6 {[%emt 0:03:29]} Kf8 {[%emt 0:03:26]} 40. Kg6 {[%emt 0:00:08]} Kg8 {[%emt 0:00:22]} 41. Kxh6 {[%emt 0:15:07]} Kf7 {[%emt 0:15:16]} 42. Kxg5 {[%emt 0:00:08]} Kg7 {[%emt 0:00:07]} 43. h4 {[%emt 0:00:07]} Kg8 {[%emt 0:00:29]} 44. Kh6 {[%emt 0:00:25]} Kh8 {[%emt 0:00:16]} 45. g5 {[%emt 0:00:04]} Kg8 {[%emt 0:00:18]} 46. g6 {[%emt 0:00:05]} Kf8 {[%emt 0:00:11]} 47. g7+ {[%emt 0:00:04]} Kf7 {[%emt 0:00:13]} 48. Bg6+ {[%emt 0:00:19]} Kf6 {[%emt 0:00:18]} 49. g8=Q {[%emt 0:00:09]} Ke5 {[%emt 0:00:11]} 50. Qc4 {[%emt 0:00:09]} Kf6 {[%emt 0:00:27]} 51. Qd5 {[%emt 0:00:18]} Ke7 {[%emt 0:00:25]} 52. Qc6 {[%emt 0:00:09]} Kd8 {[%emt 0:00:25]} 53. Be8 {[%emt 0:00:12]} Ke7 {[%emt 0:00:24]} 54. Kg7 {[%emt 0:00:39]} Kd8 {[%emt 0:00:18]} 55. Qd7# {[%emt 0:00:05]} 1-0

[Event "GER-ch Youth-U14w 2022"]
[Site "Willingen"]
[Date "2022.06.05"]
[Round "1.14"]
[White "Funke, Luise"]
[Black "Stepanjan, Marianne"]
[Result "0-1"]
[ECO "B80"]
[WhiteElo "970"]
[BlackElo "1489"]
[Annotator "NA RC COMBH"]
[PlyCount "38"]
[EventDate "2022.06.05"]
[EventType "swiss"]
[EventRounds "9"]
[EventCountry "GER"]
[SourceTitle "playchess.com"]
[Source "ChessBase"]
[SourceQuality "1"]
[TimeControl "40/4500+30:900+30"]

1. e4 {[%emt 0:00:00]} c5 {[%emt 0:00:00]} 2. Nf3 {[%emt 0:00:00]} d6 {[%emt 0:00:00]} 3. d4 {[%emt 0:00:00]} cxd4 {[%emt 0:00:00]} 4. Nxd4 {[%emt 0:00:00]} Nf6 {[%emt 0:00:00]} 5. Nc3 {[%emt 0:00:00]} e6 {[%emt 0:00:00]} 6. Qf3 {[%emt 0:00:00]} a6 {[%emt 0:00:00]} 7. Be3 {[%emt 0:00:00]} Qc7 {[%emt 0:00:00]} 8. Bd3 {[%emt 0:00:00]} Nc6 {[%emt 0:06:08]} 9. O-O-O {[%emt 0:00:00]} Bd7 {[%emt 0:02:09]} 10. g4 {[%emt 0:00:00]} Ne5 {[%emt 0:11:39]} 11. Qg3 {[%emt 0:00:38]} Nfxg4 {[%emt 0:08:56]} 12. Bf4 {[%emt 0:02:26]} Nf6 {[%emt 0:08:20]} 13. Be2 {[%emt 0:02:17]} b5 {[%emt 0:05:59]} 14. Bxe5 {[%emt 0:05:34]} dxe5 {[%emt 0:00:11]} 15. h4 {[%emt 0:02:10]} Rc8 {[%emt 0:01:20]} 16. Nf3 {[%emt 0:01:08]} Nxe4 {[%emt 0:02:51]} 17. Qh2 {[%emt 0:03:55]} Nxc3 {[%emt 0:01:48]} 18. bxc3 {[%emt 0:01:09]} Qxc3 {[%emt 0:00:06]} 19. Rd2 {[%emt 0:00:45]} Qa1# 0-1

[Event "GER-ch Youth-U14w 2022"]
[Site "Willingen"]
[Date "2022.06.05"]
[Round "1.15"]
[White "Margaryan, Venera"]
[Black "Lorenz, Rebecca"]
[Result "1-0"]
[ECO "D20"]
[WhiteElo "1477"]
[BlackElo "733"]
[Annotator "NA RC COMBH"]
[PlyCount "29"]
[EventDate "2022.06.05"]
[EventType "swiss"]
[EventRounds "9"]
[EventCountry "GER"]
[SourceTitle "playchess.com"]
[Source "ChessBase"]
[SourceQuality "1"]
[TimeControl "40/4500+30:900+30"]

1. d4 {[%emt 0:00:00]} d5 {[%emt 0:00:00]} 2. c4 {[%emt 0:00:00]} dxc4 {[%emt 0:00:00]} 3. e3 {[%emt 0:00:00]} Nf6 {[%emt 0:00:00]} 4. Bxc4 {[%emt 0:00:00]} e6 {[%emt 0:00:00]} 5. Nf3 {[%emt 0:00:00]} Nc6 {[%emt 0:00:00]} 6. Nc3 {[%emt 0:00:00]} Bb4 {[%emt 0:00:00]} 7. Bd2 {[%emt 0:00:00]} O-O {[%emt 0:00:00]} 8. a3 {[%emt 0:00:00]} Ba5 {[%emt 0:00:00]} 9. O-O {[%emt 0:00:00]} Re8 {[%emt 0:00:00]} 10. Qc2 {[%emt 0:00:00]} e5 {[%emt 0:04:33]} 11. Ng5 {[%emt 0:00:00]} Re7 {[%emt 0:05:30]} 12. Nd5 {[%emt 0:00:00]} Bxd2 {[%emt 0:03:54]} 13. Nxf6+ {[%emt 0:00:00]} gxf6 {[%emt 0:05:02]} 14. Qxh7+ {[%emt 0:00:00]} Kf8 {[%emt 0:02:28]} 15. Qh8# 1-0

[Event "GER-ch Youth-U14w 2022"]
[Site "Willingen"]
[Date "2022.06.05"]
[Round "2.1"]
[White "Fock, Madiha"]
[Black "Peglau, Dora"]
[Result "0-1"]
[ECO "B40"]
[WhiteElo "1468"]
[BlackElo "2008"]
[Annotator "TA"]
[PlyCount "56"]
[EventDate "2022.06.05"]
[EventType "swiss"]
[EventRounds "9"]
[EventCountry "GER"]
[SourceTitle "playchess.com"]
[Source "ChessBase"]
[SourceQuality "1"]
[TimeControl "40/4500+30:900+30"]

{[%evp 9,56,50,53,29,35,26,23,7,13,0,13,-2,0,-56,37,45,69,-29,-30,-22,-41,-45,-36,-72,-52,-66,-36,-37,-43,-56,15,-12,-12,-13,-22,-43,-12,-10,-21,-31,0,-122,-122,-231,-232,-224,-220,-641,-627]} 1. e4 {[%emt 0:00:00]} c5 {[%emt 0:00:00]} 2. Nf3 {[%emt 0:00:00]} e6 {[%emt 0:00:00]} 3. g3 {[%emt 0:00:00]} Nc6 {[%emt 0:00:00]} 4. Bg2 {[%emt 0:00:00]} a6 {[%emt 0:00:00]} 5. O-O {[%emt 0:00:00]} b5 {[%emt 0:00:00]} 6. d3 {[%emt 0:00:00] B40: Sicilian: 2...e6, Unusual lines.} Bb7 {[%emt 0:00:00]} 7. Qe2 {[%emt 0:00:00]} d6 {[%emt 0:00:00] [#]} 8. Be3 $146 {[%emt 0:07:20] White has an edge.} ({Predecessor:} 8. c3 Nf6 9. d4 cxd4 10. cxd4 d5 11. e5 Nd7 12. h4 Be7 13. Rd1 Rc8 14. Nbd2 {1-0 (38) Rustemov,A (2550)-Moskalenko,V (2485) Swidnica 1997}) 8... Nf6 {[%emt 0:00:00]} 9. Nfd2 {[%emt 0:04:20]} Be7 {[%emt 0:00:00]} 10. f4 {[%emt 0:03:13]} O-O {[%emt 0:00:16]} 11. c4 {[%emt 0:13:31]} ({Better is} 11. c3 $11) 11... d5 {[%emt 0:07:05]} (11... bxc4 $15 12. Nxc4 d5) 12. e5 $14 {[%emt 0:04:27]} Ne8 {[%emt 0:02:37]} 13. cxb5 {[%emt 0:07:30]} (13. cxd5 $14 exd5 14. Rc1) 13... axb5 $11 {[%emt 0:00:13]} 14. Bf2 {[%emt 0:02:43]} c4 {[%emt 0:05:02] Inhibits Nb3.} 15. dxc4 {[%emt 0:03:17]} bxc4 {[%emt 0:00:10]} 16. Rd1 {[%emt 0:03:04][%cal Od2c4]} Ba6 {[%emt 0:05:27][%cal Oc4c3] [#] ...c3! is the strong threat.} 17. Nc3 {[%emt 0:03:18]} Qc8 {[%emt 0:03:36]} 18. Nf3 {[%emt 0:02:06]} Nb4 {[%emt 0:06:05]} 19. Ne1 {[%emt 0:03:15]} Bc5 {[%emt 0:02:39]} ({Black should play} 19... Nc7 $15) 20. a3 {[%emt 0:02:37]} Bxf2+ {[%emt 0:02:28]} 21. Qxf2 {[%emt 0:00:55]} Nc6 {[%emt 0:00:20]} 22. Nf3 {[%emt 0:01:14]} Qb7 {[%emt 0:01:54]} 23. Na4 {[%emt 0:02:30]} Nc7 {[%emt 0:07:42][%cal Be8c7,Bc7a6,Ba6c5,Bc5b3][%mdl 32]} 24. Nc5 {[%emt 0:03:33]} Qb5 {[%emt 0:03:43]} 25. Nxa6 {[%emt 0:03:25]} (25. Bf1 $11 {keeps the balance.}) 25... Nxa6 $17 {[%emt 0:00:29]} 26. Nd4 {[%emt 0:01:03]} (26. b4 $17) 26... Nxd4 $19 {[%emt 0:00:14]} 27. Qxd4 {[%emt 0:00:29]} Nc5 {[%emt 0:01:09] [#] Hoping for ...Nb3.} 28. Bf1 $2 {[%emt 0:00:48]} (28. Rab1) 28... Nb3 $1 {[%emt 0:00:35][%csl LRa1,LRd4] Weighted Error Value: White=0.51/Black=0.19 (very precise)} 0-1